bitfinex-derivatives/quotes_BTCF0:USTF0_20250810
["timestamp","ask_amount","ask_price","bid_price","bid_amount"]
[1754798956450,0.03574,118710.0,118700.0,0.94286822]
[1754798956848,0.0816642,118720.0,118700.0,0.84696822]
[1754798957153,0.1507342,118720.0,118710.0,1.64544764]
[1754798957342,0.1506342,118720.0,118710.0,1.28464764]
[1754798957547,0.1863742,118720.0,118710.0,0.90942]
[1754798958557,0.1863742,118720.0,118710.0,0.94726]
[1754798959153,0.1863742,118720.0,118710.0,0.16758]
[1754798959347,0.1863742,118720.0,118710.0,0.52838]
[1754798959552,0.0168742,118720.0,118710.0,0.86576764]
[1754798959753,0.0526142,118720.0,118710.0,0.86576764]
[1754798960454,0.0168742,118720.0,118710.0,0.86576764]
[1754798960656,0.0168742,118720.0,118710.0,0.86676764]
[1754798961356,0.0526142,118720.0,118710.0,0.86676764]
[1754798962157,0.0526142,118720.0,118710.0,0.86876764]
[1754798962360,0.0168742,118720.0,118710.0,0.86876764]
[1754798962551,0.0526142,118720.0,118710.0,0.86876764]
[1754798962752,0.1560442,118720.0,118710.0,0.53238]
[1754798962953,0.52376184,118720.0,118710.0,0.91334]
[1754798963164,0.52376184,118720.0,118710.0,0.004]
[1754798964256,0.52376184,118720.0,118710.0,0.003]
[1754798965260,0.69223384,118720.0,118710.0,0.003]
[1754798965464,1.83259384,118720.0,118710.0,0.002]
[1754798965756,1.66412184,118720.0,118710.0,0.002]
[1754798965959,1.66412184,118720.0,118710.0,0.001]
[1754798966460,0.1695,118710.0,118700.0,0.0001]
[1754798966654,0.06907,118710.0,118690.0,0.43799273]
[1754798966954,0.1695,118700.0,118690.0,0.45503331]
[1754798967160,0.1695,118700.0,118690.0,1.26120331]
[1754798967358,0.1695,118700.0,118690.0,0.52878331]
[1754798967560,0.1695,118700.0,118690.0,0.62251331]
[1754798968852,0.1695,118700.0,118690.0,0.58467331]
[1754798969057,0.56499415,118700.0,118690.0,0.48503273]
[1754798969256,0.1695,118700.0,118690.0,0.38183273]
[1754798969763,0.1695,118700.0,118690.0,0.02103273]
[1754798969964,0.56499415,118700.0,118690.0,0.02303273]
[1754798970556,0.1695,118700.0,118690.0,0.02303273]
[1754798970752,0.5303,118700.0,118690.0,0.02303273]
[1754798970964,0.92579415,118700.0,118690.0,0.02303273]
[1754798971864,1.70531415,118700.0,118690.0,0.004]
[1754798973267,1.30982,118700.0,118690.0,0.004]
[1754798973461,1.70531415,118700.0,118690.0,0.004]
[1754798976870,1.71361339,118700.0,118690.0,0.004]
[1754798980276,1.31811924,118700.0,118690.0,0.004]
[1754798980873,1.30982,118700.0,118690.0,0.0996]
[1754798981072,1.30982,118700.0,118690.0,0.12933]
[1754798982578,0.94902,118700.0,118690.0,0.12933]
[1754798983179,0.03574,118700.0,118690.0,0.56337415]
[1754798983373,0.10661,118710.0,118700.0,0.16388]
[1754798983573,0.10631,118710.0,118700.0,0.52468]
[1754798983868,0.17353,118710.0,118700.0,0.52468]
[1754798984568,0.17353,118710.0,118700.0,0.52568]
[1754798985682,0.03828,118710.0,118700.0,0.92117415]
[1754798986771,0.03828,118710.0,118700.0,0.86305127]
[1754798987472,0.03828,118710.0,118700.0,0.86405127]
[1754798988177,0.07464,118710.0,118700.0,0.86405127]
[1754798988976,0.03828,118710.0,118700.0,0.86405127]
[1754798989182,0.03828,118710.0,118700.0,1.64345127]
[1754798989783,0.03828,118710.0,118700.0,0.86405127]
[1754798990582,0.07464,118710.0,118700.0,0.86405127]
[1754798991276,0.07464,118710.0,118700.0,0.52668]
[1754798991476,0.07464,118710.0,118700.0,0.86405127]
[1754798994186,0.07464,118710.0,118700.0,0.52668]
[1754798994386,0.07464,118710.0,118700.0,0.86405127]
[1754798994886,0.17353,118710.0,118700.0,0.86405127]
[1754798998588,0.14186,118710.0,118700.0,0.86405127]
[1754798998789,0.1055,118710.0,118700.0,0.86405127]
[1754798998990,0.03828,118710.0,118700.0,0.86405127]
[1754799007491,0.03828,118710.0,118700.0,0.52668]
[1754799007698,0.03828,118710.0,118700.0,0.86405127]
[1754799007897,0.07556,118710.0,118700.0,0.86405127]
[1754799009398,0.03828,118710.0,118700.0,0.86405127]
[1754799009601,0.0171742,118720.0,118710.0,0.09295]
[1754799009900,0.0534442,118720.0,118710.0,1.63740127]
[1754799010105,0.1876642,118720.0,118710.0,1.30003]
[1754799014204,0.1876642,118720.0,118710.0,1.30834187]
[1754799014804,0.1876642,118720.0,118710.0,1.30934187]
[1754799017012,0.1572242,118720.0,118710.0,1.30934187]
[1754799017613,0.1376617,118720.0,118710.0,1.39356647]
[1754799017810,0.1010917,118720.0,118710.0,1.73093774]
[1754799018009,0.0168742,118720.0,118710.0,1.73093774]
[1754799018514,0.0168742,118720.0,118710.0,1.73193774]
[1754799019913,0.2053011,118730.0,118710.0,1.73193774]
[1754799020219,0.0001,118730.0,118720.0,0.94261957]
[1754799020408,0.30666335,118740.0,118730.0,0.2444414]
[1754799020610,0.32577923,118740.0,118730.0,0.6052414]
[1754799021713,0.32677923,118740.0,118730.0,0.6052414]
[1754799021908,0.24256953,118740.0,118730.0,0.6052414]
[1754799022611,0.12179113,118740.0,118730.0,0.6052414]
[1754799022817,0.12179113,118740.0,118730.0,0.94261267]
[1754799023015,0.15836113,118740.0,118730.0,0.94261267]
[1754799023628,0.15836113,118740.0,118730.0,0.6052414]
[1754799024821,0.15736113,118740.0,118730.0,0.6052414]
[1754799025220,0.15736113,118740.0,118730.0,0.8742414]
[1754799026824,0.15736113,118740.0,118730.0,1.21161267]
[1754799027517,0.03658683,118740.0,118730.0,1.21161267]
[1754799027723,0.03658683,118740.0,118730.0,0.94261267]
[1754799028625,0.12079113,118740.0,118730.0,0.94261267]
[1754799029332,0.15736113,118740.0,118730.0,0.94261267]
[1754799031030,0.13794525,118740.0,118730.0,0.94261267]
[1754799032835,0.13794525,118740.0,118730.0,0.6052414]
[1754799033035,0.13794525,118740.0,118730.0,0.94261267]
[1754799033440,0.13794525,118740.0,118730.0,0.6052414]
[1754799033933,0.20444525,118740.0,118730.0,0.6052414]
[1754799035831,0.10137525,118740.0,118730.0,0.6052414]
[1754799036038,0.10137525,118740.0,118730.0,0.94261267]
[1754799036829,0.14004525,118740.0,118730.0,0.94261267]
[1754799037232,0.14004525,118740.0,118730.0,1.21161267]
[1754799046644,0.39296988,118740.0,118730.0,1.12716603]
[1754799049746,0.39296988,118740.0,118730.0,0.76636603]
[1754799049945,0.39296988,118740.0,118730.0,1.12716603]
[1754799053250,0.42698988,118740.0,118730.0,1.12716603]
[1754799054953,0.49480988,118740.0,118730.0,1.12716603]
[1754799055853,0.52361988,118740.0,118730.0,1.12716603]
[1754799057564,0.01717095,118740.0,118730.0,1.38009066]
[1754799057757,0.01717095,118740.0,118730.0,1.45519124]
[1754799058567,0.01717095,118740.0,118730.0,1.18619124]
[1754799058860,0.0003,118750.0,118740.0,0.0842048]
[1754799059066,0.3593728,118760.0,118750.0,0.1529477]
[1754799059259,0.4219028,118760.0,118750.0,0.85302233]
[1754799060368,0.2915305,118770.0,118760.0,0.2036007]
[1754799060559,0.67480513,118770.0,118760.0,0.2392907]
[1754799060756,0.67480513,118770.0,118760.0,1.27045533]
[1754799060955,0.69384822,118770.0,118760.0,1.27045533]
[1754799061263,0.35673409,118770.0,118760.0,1.88417996]
[1754799061460,0.20971719,118770.0,118760.0,1.88417996]
[1754799061854,0.24373719,118770.0,118760.0,1.88417996]
[1754799062063,0.27553268,118770.0,118760.0,1.88417996]
[1754799062261,0.50942873,118770.0,118760.0,1.88417996]
[1754799062467,0.51342873,118770.0,118760.0,1.88417996]
[1754799062665,0.51342873,118770.0,118760.0,1.63125533]
[1754799062861,0.2605041,118770.0,118760.0,1.63125533]
[1754799063056,0.51342873,118770.0,118760.0,1.63125533]
[1754799063870,0.2605041,118770.0,118760.0,1.63965532]
[1754799064072,0.51342873,118770.0,118760.0,1.63965532]
[1754799064669,0.2792652,118770.0,118760.0,1.3783307]
[1754799065466,0.61636348,118770.0,118760.0,0.01973]
[1754799065672,0.2501207,118760.0,118750.0,1.05873582]
[1754799065864,0.58721898,118760.0,118750.0,1.05863582]
[1754799067373,0.58921898,118760.0,118750.0,1.05863582]
[1754799067970,0.2521207,118760.0,118750.0,1.09402582]
[1754799068176,0.2551207,118760.0,118750.0,1.09402582]
[1754799074774,0.2551207,118760.0,118750.0,1.1691264]
[1754799076282,0.2551207,118760.0,118750.0,1.09402582]
[1754799077880,0.2551207,118760.0,118750.0,1.1691264]
[1754799078982,0.59221898,118760.0,118750.0,1.1691264]
[1754799082579,0.59221898,118760.0,118750.0,0.3909664]
[1754799082777,0.59221898,118760.0,118750.0,1.1925364]
[1754799083487,0.59221898,118760.0,118750.0,1.11743582]
[1754799085089,0.59221898,118760.0,118750.0,1.1925364]
[1754799085888,0.59221898,118760.0,118750.0,1.11743582]
[1754799086488,0.59221898,118760.0,118750.0,1.1925364]
[1754799086688,0.50799183,118760.0,118750.0,1.44540753]
[1754799087891,0.50799183,118760.0,118750.0,1.37030695]
[1754799089794,0.76086296,118760.0,118750.0,1.37030695]
[1754799090798,0.50799183,118760.0,118750.0,1.37030695]
[1754799091297,0.50799183,118760.0,118750.0,0.59226695]
[1754799091496,0.50799183,118760.0,118750.0,1.37022695]
[1754799093101,0.76086296,118760.0,118750.0,1.37018695]
[1754799094592,0.50799183,118760.0,118750.0,1.37018695]
[1754799096000,0.76086296,118760.0,118750.0,1.37018695]
[1754799097789,0.76086296,118760.0,118750.0,0.59226695]
[1754799097993,0.76086296,118760.0,118750.0,1.37014695]
[1754799099300,0.50799183,118760.0,118750.0,1.37014695]
[1754799103111,0.2551207,118760.0,118750.0,1.37014695]
[1754799103308,0.50799183,118760.0,118750.0,1.37014695]
[1754799104009,0.50799183,118760.0,118750.0,1.73094695]
[1754799105200,0.50799183,118760.0,118750.0,1.80604753]
[1754799109111,0.50799183,118760.0,118750.0,1.73094695]
[1754799110712,0.2551207,118760.0,118750.0,1.73094695]
[1754799111015,0.50799183,118760.0,118750.0,1.73094695]
[1754799111714,0.2551207,118760.0,118750.0,1.73094695]
[1754799112009,0.50799183,118760.0,118750.0,1.73094695]
[1754799112915,0.50799183,118760.0,118750.0,0.95306695]
[1754799113116,0.50799183,118760.0,118750.0,1.73074695]
[1754799116412,0.2551207,118760.0,118750.0,1.73074695]
[1754799116608,0.005,118760.0,118750.0,1.98361808]
[1754799117319,0.005,118760.0,118750.0,1.73074695]
[1754799119913,0.005,118760.0,118750.0,1.99974695]
[1754799121621,0.005,118760.0,118750.0,2.25261808]
[1754799122719,0.0891911,118760.0,118750.0,2.25261808]
[1754799123015,0.0891911,118760.0,118750.0,1.99974695]
[1754799124116,0.0891911,118760.0,118750.0,1.74687582]
[1754799124424,0.0891911,118760.0,118750.0,1.99974695]
[1754799125117,0.005,118760.0,118750.0,1.99974695]
[1754799125414,0.005,118760.0,118750.0,2.25261808]
[1754799125620,0.0003,118770.0,118760.0,0.2243511]
[1754799125818,0.2525462,118780.0,118770.0,0.224344]
[1754799125819,0.2036522,118780.0,118770.0,0.224344]
[1754799126010,0.1191695,118780.0,118770.0,1.25485513]
[1754799126319,0.75156803,118790.0,118780.0,0.2243369]
[1754799126518,0.75126803,118790.0,118780.0,0.83820803]
[1754799126911,0.54038253,118790.0,118780.0,1.09107916]
[1754799127116,0.54038253,118790.0,118780.0,0.83820803]
[1754799127318,0.63935253,118790.0,118780.0,0.84651531]
[1754799127620,0.66709253,118790.0,118780.0,0.84651531]
[1754799128320,0.67309253,118790.0,118780.0,0.84651531]
[1754799128516,0.4202214,118790.0,118780.0,0.84651531]
[1754799128720,0.67709253,118790.0,118780.0,0.84651531]
[1754799130318,0.67709253,118790.0,118780.0,0.48571531]
[1754799130521,0.67709253,118790.0,118780.0,0.55215764]
[1754799134123,0.4242214,118790.0,118780.0,0.55215764]
[1754799134421,0.67709253,118790.0,118780.0,0.55215764]
[1754799134826,0.4242214,118790.0,118780.0,0.55215764]
[1754799135017,0.67709253,118790.0,118780.0,0.55215764]
[1754799136124,0.67709253,118790.0,118780.0,0.80502877]
[1754799136324,0.67709253,118790.0,118780.0,0.55215764]
[1754799139933,0.4242214,118790.0,118780.0,0.55215764]
[1754799140126,0.67709253,118790.0,118780.0,0.55215764]
[1754799140325,0.67709253,118790.0,118780.0,0.54385036]
[1754799140928,0.4242214,118790.0,118780.0,0.54385036]
[1754799141424,0.67709253,118790.0,118780.0,0.54385036]
[1754799143034,0.67709253,118790.0,118780.0,0.29097923]
[1754799143328,0.67709253,118790.0,118780.0,0.79672149]
[1754799143630,0.4242214,118790.0,118780.0,0.29097923]
[1754799143834,0.67709253,118790.0,118780.0,1.15752149]
[1754799145433,0.4242214,118790.0,118780.0,1.15752149]
[1754799146033,0.67709253,118790.0,118780.0,1.15752149]
[1754799146230,0.4242214,118790.0,118780.0,1.15752149]
[1754799150542,0.4242214,118790.0,118780.0,0.65177923]
[1754799150845,0.67709253,118790.0,118780.0,1.15752149]
[1754799151736,0.4242214,118790.0,118780.0,1.15752149]
[1754799152138,0.3964814,118790.0,118780.0,0.65177923]
[1754799152436,0.4242214,118790.0,118780.0,0.65177923]
[1754799152831,0.4242214,118790.0,118780.0,1.15752149]
[1754799153031,0.67709253,118790.0,118780.0,0.65177923]
[1754799153238,0.67709253,118790.0,118780.0,1.15752149]
[1754799154132,0.4242214,118790.0,118780.0,1.15752149]
[1754799154340,0.67709253,118790.0,118780.0,0.65177923]
[1754799154642,0.4242214,118790.0,118780.0,1.15752149]
[1754799155233,0.340047,118790.0,118780.0,0.62398923]
[1754799155436,0.04617,118790.0,118780.0,1.15629149]
[1754799157242,0.01,118790.0,118780.0,1.15629149]
[1754799157843,0.0003,118800.0,118790.0,0.2223701]
[1754799158145,0.6890587,118810.0,118800.0,0.222363]
[1754799158345,0.7094225,118810.0,118800.0,0.72830526]
[1754799159245,0.3486225,118810.0,118800.0,0.72830526]
[1754799159447,0.60149363,118810.0,118800.0,0.47543413]
[1754799159737,0.60349363,118810.0,118800.0,0.47543413]
[1754799159937,0.60349363,118810.0,118800.0,0.777]
[1754799160145,0.60349363,118810.0,118800.0,1.05036113]
[1754799160443,0.60549363,118810.0,118800.0,1.07770113]
[1754799160644,0.60549363,118810.0,118800.0,1.16186403]
[1754799160839,0.60549363,118810.0,118800.0,1.18842403]
[1754799161544,0.58482983,118810.0,118800.0,1.16186403]
[1754799162544,0.3319587,118810.0,118800.0,1.16186403]
[1754799162746,0.58482983,118810.0,118800.0,1.16186403]
[1754799163340,0.58482983,118810.0,118800.0,1.18842403]
[1754799164039,0.2477989,118810.0,118800.0,1.44129516]
[1754799164240,0.1467689,118810.0,118800.0,1.44129516]
[1754799164446,0.2477989,118810.0,118800.0,1.44129516]
[1754799165142,0.50067003,118810.0,118800.0,0.9726829]
[1754799165341,0.50067003,118810.0,118800.0,1.22555403]
[1754799165839,0.50067003,118810.0,118800.0,1.25211403]
[1754799166241,0.50067003,118810.0,118800.0,1.61291403]
[1754799166440,0.2477989,118810.0,118800.0,1.86578516]
[1754799168241,0.1867489,118810.0,118800.0,1.86578516]
[1754799168442,0.2196789,118810.0,118800.0,1.86578516]
[1754799168646,0.2477989,118810.0,118800.0,1.3600429]
[1754799168847,0.2477989,118810.0,118800.0,1.86578516]
[1754799169147,0.2196789,118810.0,118800.0,1.86578516]
[1754799169548,0.1847489,118810.0,118800.0,1.86678516]
[1754799169751,0.1827489,118810.0,118800.0,1.86978516]
[1754799170148,0.43562003,118810.0,118800.0,1.86978516]
[1754799170339,0.1827489,118810.0,118800.0,1.86978516]
[1754799170545,0.2437989,118810.0,118800.0,1.86978516]
[1754799172144,0.49667003,118810.0,118800.0,0.84023403]
[1754799172346,0.49667003,118810.0,118800.0,1.61683403]
[1754799174353,0.2437989,118810.0,118800.0,1.61683403]
[1754799174547,0.2437989,118810.0,118800.0,1.3639629]
[1754799174753,0.2437989,118810.0,118800.0,1.86970516]
[1754799175054,0.49667003,118810.0,118800.0,1.3639629]
[1754799175249,0.2437989,118810.0,118800.0,1.3639629]
[1754799175452,0.2437989,118810.0,118800.0,1.86970516]
[1754799175650,0.2437989,118810.0,118800.0,1.3639629]
[1754799175944,0.2437989,118810.0,118800.0,1.86970516]
[1754799176148,0.2437989,118810.0,118800.0,1.3639629]
[1754799176347,0.2437989,118810.0,118800.0,1.86970516]
[1754799176548,0.2437989,118810.0,118800.0,1.3639629]
[1754799177055,0.2437989,118810.0,118800.0,1.86970516]
[1754799177252,0.2437989,118810.0,118800.0,1.3639629]
[1754799177461,0.2437989,118810.0,118800.0,1.86970516]
[1754799177653,0.49667003,118810.0,118800.0,1.86970516]
[1754799177957,0.49667003,118810.0,118800.0,1.3639629]
[1754799178150,0.49667003,118810.0,118800.0,1.61683403]
[1754799178345,0.2437989,118810.0,118800.0,1.61683403]
[1754799178552,0.2437989,118810.0,118800.0,1.86970516]
[1754799178750,0.2437989,118810.0,118800.0,1.3639629]
[1754799178949,0.2437989,118810.0,118800.0,1.86970516]
[1754799179250,0.1827489,118810.0,118800.0,1.3639629]
[1754799179446,0.43562003,118810.0,118800.0,1.86970516]
[1754799179655,0.2156789,118810.0,118800.0,1.86970516]
[1754799181464,0.1203289,118810.0,118800.0,1.86970516]
[1754799182159,0.1203289,118810.0,118800.0,1.3639629]
[1754799182354,0.1203289,118810.0,118800.0,1.86970516]
[1754799183060,0.1203289,118810.0,118800.0,1.3639629]
[1754799183251,0.1203289,118810.0,118800.0,1.86970516]
[1754799183764,0.1203289,118810.0,118800.0,1.3639629]
[1754799183959,0.1203289,118810.0,118800.0,1.86970516]
[1754799185362,0.1534489,118810.0,118800.0,1.86970516]
[1754799185563,0.2166589,118810.0,118800.0,1.86970516]
[1754799185762,0.2444489,118810.0,118800.0,1.86970516]
[1754799192755,0.2444489,118810.0,118800.0,0.5873629]
[1754799192951,0.49732003,118810.0,118800.0,1.87310516]
[1754799194460,0.49732003,118810.0,118800.0,1.3673629]
[1754799194661,0.49732003,118810.0,118800.0,1.87310516]
[1754799194863,0.2444489,118810.0,118800.0,1.87310516]
[1754799195164,0.49732003,118810.0,118800.0,1.87310516]
[1754799196953,0.2444489,118810.0,118800.0,1.87310516]
[1754799197354,0.49732003,118810.0,118800.0,1.87310516]
[1754799198159,0.2444489,118810.0,118800.0,1.87310516]
[1754799198468,0.49732003,118810.0,118800.0,1.87310516]
[1754799199671,0.49732003,118810.0,118800.0,1.51230516]
[1754799199871,0.0841589,118810.0,118800.0,1.51230516]
[1754799200072,0.1169689,118810.0,118800.0,1.51230516]
[1754799202770,0.1500889,118810.0,118800.0,1.87310516]
[1754799204972,0.1169689,118810.0,118800.0,1.87310516]
[1754799205167,0.0841589,118810.0,118800.0,1.87310516]
[1754799206175,0.1169689,118810.0,118800.0,1.87310516]
[1754799206778,0.1169658,118810.0,118800.0,1.87310516]
[1754799207076,0.0841558,118810.0,118800.0,1.87310516]
[1754799207377,0.59935093,118820.0,118800.0,1.87310516]
[1754799207378,0.3464798,118820.0,118800.0,1.87310516]
[1754799207676,0.51253835,118820.0,118810.0,0.83129693]
[1754799207978,0.51243835,118820.0,118810.0,0.83149693]
[1754799208375,0.76530948,118820.0,118810.0,0.83149693]
[1754799209077,0.76530948,118820.0,118810.0,0.83249693]
[1754799209279,0.42828355,118820.0,118810.0,0.83249693]
[1754799210683,0.40049355,118820.0,118810.0,0.83249693]
[1754799210979,0.3800298,118820.0,118810.0,0.83249693]
[1754799211272,0.4078198,118820.0,118810.0,0.83249693]
[1754799211674,0.4078198,118820.0,118810.0,0.84075648]
[1754799212283,0.66069093,118820.0,118810.0,0.84075648]
[1754799212475,0.4078198,118820.0,118810.0,0.84075648]
[1754799212677,0.66069093,118820.0,118810.0,0.84075648]
[1754799212979,0.66069093,118820.0,118810.0,0.58788535]
[1754799213180,0.66069093,118820.0,118810.0,0.84075648]
[1754799213781,0.66069093,118820.0,118810.0,0.83249693]
[1754799213969,0.4078198,118820.0,118810.0,0.83249693]
[1754799214172,0.201115,118820.0,118810.0,0.83249693]
[1754799214471,0.1169623,118820.0,118810.0,0.83249693]
[1754799214783,0.40295343,118820.0,118810.0,0.5796258]
[1754799214973,0.2395123,118820.0,118810.0,0.83249693]
[1754799215170,0.49238343,118820.0,118810.0,0.83249693]
[1754799215476,0.2395123,118820.0,118810.0,0.83249693]
[1754799215682,0.49238343,118820.0,118810.0,0.83249693]
[1754799216282,0.49238343,118820.0,118810.0,0.83782693]
[1754799217775,0.49238343,118820.0,118810.0,0.5849558]
[1754799218092,0.2395123,118820.0,118810.0,0.83782693]
[1754799218380,0.49238343,118820.0,118810.0,0.83782693]
[1754799222380,0.2395123,118820.0,118810.0,0.83782693]
[1754799225775,0.2117223,118820.0,118810.0,0.83782693]
[1754799226084,0.2117223,118820.0,118810.0,0.5869558]
[1754799226290,0.2117223,118820.0,118810.0,0.83982693]
[1754799226488,0.2388823,118820.0,118810.0,0.83982693]
[1754799226677,0.2388823,118820.0,118810.0,0.5879558]
[1754799226880,0.2388823,118820.0,118810.0,0.84082693]
[1754799228392,0.2117223,118820.0,118810.0,0.84082693]
[1754799230494,0.2388823,118820.0,118810.0,0.84082693]
[1754799230991,0.49175343,118820.0,118810.0,0.84082693]
[1754799231185,0.2388823,118820.0,118810.0,0.84082693]
[1754799231587,0.49175343,118820.0,118810.0,0.5879558]
[1754799231782,0.49175343,118820.0,118810.0,0.84082693]
[1754799233895,0.2388823,118820.0,118810.0,0.84082693]
[1754799236499,0.49175343,118820.0,118810.0,0.84082693]
[1754799236892,0.2388823,118820.0,118810.0,0.84082693]
[1754799237093,0.49175343,118820.0,118810.0,0.84082693]
[1754799238196,0.2388823,118820.0,118810.0,0.84082693]
[1754799238393,0.49175343,118820.0,118810.0,0.84082693]
[1754799239502,0.49175343,118820.0,118810.0,0.5879558]
[1754799239704,0.49175343,118820.0,118810.0,0.84082693]
[1754799240503,0.49175343,118820.0,118810.0,0.5879558]
[1754799240705,0.49175343,118820.0,118810.0,0.84082693]
[1754799240893,0.2117223,118820.0,118810.0,0.84082693]
[1754799241400,0.2388823,118820.0,118810.0,0.84082693]
[1754799242001,0.15473,118820.0,118810.0,0.84082693]
[1754799242203,0.2388799,118820.0,118810.0,0.84082693]
[1754799244304,0.2388799,118820.0,118810.0,1.10982693]
[1754799245806,0.2388799,118820.0,118810.0,0.8569558]
[1754799245994,0.2388799,118820.0,118810.0,1.10982693]
[1754799248497,0.46459103,118820.0,118810.0,0.4544858]
[1754799248709,0.74271216,118820.0,118810.0,1.2350858]
[1754799249006,0.74271216,118820.0,118810.0,1.2812258]
[1754799249407,0.48984103,118820.0,118810.0,1.53409693]
[1754799249807,0.2369699,118820.0,118810.0,1.53409693]
[1754799250003,0.48984103,118820.0,118810.0,1.53409693]
[1754799250203,0.74271216,118820.0,118810.0,1.53409693]
[1754799250600,0.2369699,118820.0,118810.0,1.53409693]
[1754799251308,0.48984103,118820.0,118810.0,1.53409693]
[1754799251500,0.48984103,118820.0,118810.0,1.2812258]
[1754799251900,0.48984103,118820.0,118810.0,1.53409693]
[1754799252101,0.74271216,118820.0,118810.0,1.2812258]
[1754799252301,0.74271216,118820.0,118810.0,1.53409693]
[1754799252796,0.74271216,118820.0,118810.0,1.55704693]
[1754799252797,0.51016647,118820.0,118810.0,1.55704693]
[1754799253408,0.51016647,118820.0,118810.0,1.3041758]
[1754799253609,0.25729534,118820.0,118810.0,1.55704693]
[1754799253809,0.51016647,118820.0,118810.0,1.55704693]
[1754799254004,0.48984103,118820.0,118810.0,1.55704693]
[1754799254806,0.48984103,118820.0,118810.0,0.454487]
[1754799254807,0.74271216,118820.0,118810.0,0.454487]
[1754799255410,0.2369699,118820.0,118810.0,0.539087]
[1754799255708,0.74271216,118820.0,118810.0,0.560927]
[1754799256404,0.74271216,118820.0,118810.0,0.200127]
[1754799256999,1.35638329,118820.0,118810.0,0.00953]
[1754799257206,1.10351216,118820.0,118810.0,0.00953]
[1754799257706,0.5977699,118820.0,118810.0,0.00953]
[1754799257904,1.10351216,118820.0,118810.0,0.00953]
[1754799258405,0.48984103,118820.0,118810.0,0.44959625]
[1754799258706,0.48984103,118820.0,118810.0,0.47143625]
[1754799258904,0.2369699,118820.0,118810.0,0.49438625]
[1754799259106,0.48984103,118820.0,118810.0,0.49438625]
[1754799260312,0.48984103,118820.0,118810.0,0.47143625]
[1754799260610,0.2369699,118820.0,118810.0,0.55537659]
[1754799261014,0.2369699,118820.0,118810.0,1.01320512]
[1754799261710,0.57378137,118820.0,118810.0,0.90676522]
[1754799262019,0.57378137,118820.0,118810.0,0.02796842]
[1754799262312,0.93458137,118820.0,118810.0,0.02796842]
[1754799264608,0.93458137,118820.0,118810.0,0.11212512]
[1754799265212,0.93458137,118820.0,118810.0,0.02796842]
[1754799266412,0.93458137,118820.0,118810.0,0.11212512]
[1754799269304,0.5977699,118820.0,118810.0,0.14958512]
[1754799269504,0.5977699,118820.0,118810.0,0.52972659]
[1754799269708,0.2369699,118820.0,118810.0,0.57832659]
[1754799269915,0.2369699,118820.0,118810.0,0.93912659]
[1754799270410,0.2369699,118820.0,118810.0,0.57936512]
[1754799270608,0.57378137,118820.0,118810.0,0.17523512]
[1754799270804,0.57378137,118820.0,118810.0,0.11212512]
[1754799271712,0.57378137,118820.0,118810.0,0.13261512]
[1754799272416,0.57378137,118820.0,118810.0,0.15826512]
[1754799272917,0.57378137,118820.0,118810.0,0.16491512]
[1754799273116,0.2369699,118820.0,118810.0,0.16491512]
[1754799273319,0.57378137,118820.0,118810.0,0.16491512]
[1754799273818,0.57378137,118820.0,118810.0,0.18188512]
[1754799274015,0.57378137,118820.0,118810.0,0.20337512]
[1754799274718,0.57378137,118820.0,118810.0,0.22521512]
[1754799275316,0.57378137,118820.0,118810.0,0.03461842]
[1754799275522,0.93458137,118820.0,118810.0,0.11877512]
[1754799275914,0.93458137,118820.0,118810.0,0.03461842]
[1754799278223,0.5977699,118820.0,118810.0,0.03461842]
[1754799278424,0.93458137,118820.0,118810.0,0.03461842]
[1754799278925,0.5977699,118820.0,118810.0,0.03461842]
[1754799279226,0.93458137,118820.0,118810.0,0.03461842]
[1754799279426,1.72550137,118820.0,118810.0,0.03461842]
[1754799280322,1.3886899,118820.0,118810.0,0.03461842]
[1754799280525,1.72550137,118820.0,118810.0,0.03461842]
[1754799281925,1.3886899,118820.0,118810.0,0.03461842]
[1754799282124,1.72550137,118820.0,118810.0,0.03461842]
[1754799282716,1.89408088,118820.0,118800.0,0.0001]
[1754799282920,0.2044798,118790.0,118780.0,0.73577233]
[1754799283121,0.25307564,118790.0,118780.0,1.70018739]
[1754799283315,0.50577113,118790.0,118780.0,1.72067739]
[1754799283821,0.50577113,118790.0,118780.0,1.82529782]
[1754799284526,0.50577113,118790.0,118780.0,2.07799331]
[1754799284724,0.25307564,118790.0,118780.0,1.90958907]
[1754799285625,0.25307564,118790.0,118780.0,1.80496864]
[1754799286027,0.25307564,118790.0,118780.0,1.80996864]
[1754799286933,0.25307564,118790.0,118780.0,1.4729819]
[1754799287137,0.59006238,118790.0,118780.0,0.2392872]
[1754799287335,0.59006238,118790.0,118780.0,0.2597772]
[1754799287831,0.59006238,118790.0,118780.0,0.2827672]
[1754799288335,0.25307564,118790.0,118780.0,0.2827672]
[1754799288537,0.26164263,118790.0,118780.0,0.2827672]
[1754799288738,0.25307564,118790.0,118780.0,0.2827672]
[1754799289035,0.25307564,118790.0,118780.0,0.2015936]
[1754799289421,0.59006238,118790.0,118780.0,0.2015936]
[1754799290228,0.25307564,118790.0,118780.0,0.2015936]
[1754799290437,0.59006238,118790.0,118780.0,0.5623936]
[1754799290629,0.25307564,118790.0,118780.0,0.92115034]
[1754799292332,0.13352564,118790.0,118780.0,0.92115034]
[1754799292536,0.10106564,118790.0,118780.0,0.92115034]
[1754799292936,0.13352564,118790.0,118780.0,0.92115034]
[1754799294541,0.25307564,118790.0,118780.0,0.92115034]
[1754799296233,0.22676564,118790.0,118780.0,0.92115034]
[1754799296434,0.13352564,118790.0,118780.0,0.92115034]
[1754799296935,0.13352564,118790.0,118780.0,0.9900505]
[1754799297735,0.0842626,118800.0,118790.0,0.1469996]
[1754799297939,0.4045944,118810.0,118800.0,0.2153525]
[1754799298134,0.4044944,118810.0,118800.0,0.55233924]
[1754799299035,0.3203319,118810.0,118800.0,0.55433924]
[1754799299233,0.3203319,118810.0,118800.0,0.55633924]
[1754799300444,0.3203319,118810.0,118800.0,0.91713924]
[1754799300842,0.2098608,118810.0,118800.0,0.91713924]
[1754799301048,0.1781608,118810.0,118800.0,0.91713924]
[1754799301344,0.2361708,118810.0,118800.0,0.91713924]
[1754799301544,0.2363708,118810.0,118800.0,0.91733924]
[1754799301741,0.1783608,118810.0,118800.0,0.91733924]
[1754799301939,0.1783608,118810.0,118800.0,0.92559699]
[1754799302135,0.1783608,118810.0,118800.0,1.19459699]
[1754799302337,0.1392608,118810.0,118800.0,1.19459699]
[1754799304144,0.1392608,118810.0,118800.0,0.85761025]
[1754799304341,0.1392608,118810.0,118800.0,1.19459699]
[1754799305045,0.1168208,118810.0,118800.0,1.19459699]
[1754799305744,0.1150508,118810.0,118800.0,1.19459699]
[1754799307348,0.0002,118810.0,118800.0,1.19459699]
[1754799307946,0.03089,118810.0,118800.0,1.19459699]
[1754799310948,0.1150455,118810.0,118800.0,1.19459699]
[1754799311148,0.1466355,118810.0,118800.0,1.19459699]
[1754799311742,0.1150455,118810.0,118800.0,1.19459699]
[1754799311946,0.2323855,118810.0,118800.0,1.98179699]
[1754799312342,0.14823,118810.0,118800.0,1.98179699]